Cogmind - Beta 15 @@@ ROGUE MODE // 2025.08.12 @ 14:56:51 Player: Gatamar Result: Destroyed by G-34 Mercenary with Small Laser Performance ------------- Evolutions (1) 500 Regions Visited (3) 600 Robots Destroyed (6) 30 Value Destroyed (138) 138 Prototype IDs (0) 0 Alien Tech Used (0) 0 Bonus (0) 0 TOTAL SCORE: 1268 Bonus ------- None Cogmind --------- Core Integrity 0/400 Matter 300/300 Energy 100/100 System Corruption 0% Temperature Cool (6) Movement Core (100) Ox1 Location -9/Materials Parts ------- > --- POWER (1) -------- (None) > --- PROPULSION (2) --- (None) > --- UTILITY (4) ------ Small Storage Unit > --- WEAPON (2) ------- (None) > --- INVENTORY (8) ---- Light Ion Engine Wheel Faulty Improved EM Shotgun Small Laser Beam Cannon Assault Rifle Light Assault Rifle Peak State ------------ > --- POWER ------------ Ion Engine > --- PROPULSION ------- Light Treads Light Treads > --- UTILITY ---------- Small Storage Unit > --- WEAPON ----------- Assault Rifle Maul > --- INVENTORY -------- Light Ion Engine Wheel Small Laser Light Assault Rifle Light Cannon [Rating: 7] Favorites ----------- Power Ion Engine Engine Ion Engine Propulsion Light Treads Treads Light Treads Wheel Wheel Utility Small Storage Unit Storage Small Storage Unit Weapon Maul Energy Gun Small Laser Ballistic Gun Assault Rifle Ballistic Cannon Light Cannon Impact Weapon Maul Build | -11 -10 -10 -9 ------- Run | Yrd Mat Min Mat Slots Evolved 2 | . . . 2 Power . | . . . . Propulsion . | . . . . Utility 2 | . . . 2 Weapon . | . . . . Parts Attached 12 | 8 3 1 . Power 2 | 2 . . . Engine 2 | 2 . . . Core . | . . . . Reactor . | . . . . Propulsion 4 | 2 2 . . Treads 2 | . 2 . . Leg . | . . . . Wheel 2 | 2 . . . Hover . | . . . . Flight . | . . . . Utility 1 | 1 . . . Device . | . . . . Storage 1 | 1 . . . Processor . | . . . . Hackware . | . . . . Protection . | . . . . Artifact . | . . . . Weapon 5 | 3 1 1 . Energy Gun 1 | 1 . . . Energy Cannon . | . . . . Ballistic Gun 2 | 2 . . . Ballistic Cannon 1 | . . 1 . Launcher . | . . . . Special Weapon . | . . . . Impact Weapon 1 | . 1 . . Slashing Weapon . | . . . . Piercing Weapon . | . . . . Special Melee Weapon . | . . . . Unidentified Prototypes . | . . . . Parts Lost 5 | . . . 5 Power 1 | . . . 1 Propulsion 2 | . . . 2 Utility . | . . . . Weapon 2 | . . . 2 Highest Loss Streak 5 | . . . 5 To Critical Strikes . | . . . . Average Backups 5 | 2 5 5 6 Power . | . 1 1 1 Propulsion 1 | 1 1 1 1 Utility . | . . . . Weapon 3 | . 2 3 4 Tool/Special . | . . . . Unused Backups 2 | . . . 2 Power . | . . . . Propulsion . | . . . . Utility . | . . . . Weapon 2 | . . . 2 Tool/Special . | . . . . Average Slot Usage (%) 68 | . 83 85 55 Engine 11 | . 14 14 8 Treads 18 | . 12 28 17 Wheel 2 | . 14 . . Storage 12 | . 14 14 11 Ballistic Gun 6 | . 21 7 . Ballistic Cannon 6 | . . 7 8 Impact Weapon 10 | . 6 14 9 Peak Build Rating 7 | 6 7 7 7 Average Rating 6 | 4 6 7 5 On Entrance 5 | . 6 7 7 Naked Turns . | . . . . Heaviest Build 16 | 13 15 16 16 Greatest Support 40 | 20 40 40 40 Greatest Overweight (x) 2 | . . . 2 Average Overweight (x) . | . . . . Largest Inventory Capacity 8 | 8 8 8 8 Average Capacity 7 | 6 8 8 8 Most Carried 7 | 4 6 6 7 Average Carried 5 | 2 5 5 6 Final Capacity 8 | 8 8 8 8 Final Carried 7 | 4 5 6 7 Class Distribution -------------------- 100% | Mutant Dominant Class ---------------- Mutant | -10/Materials Mutant | -10/Mines Mutant | -9/Materials Resources | -11 -10 -10 -9 ----------- Run | Yrd Mat Min Mat Matter Collected 324 | 201 113 10 . Remotely . | . . . . Salvage Created 188 | . 27 113 48 Parts 9 | . . 7 2 Haulers Intercepted . | . . . . Recyclers Shooed 1 | . . 1 . Parts Field Recycled . | . . . . Retrieved Matter . | . . . . Parts Self-Destructed . | . . . . Prevented . | . . . . Kills | -11 -10 -10 -9 ------- Run | Yrd Mat Min Mat Combat Hostiles Destroyed 3 | . 1 1 1 Melee 1 | . 1 . . Classes Destroyed 5 | . 1 3 1 Worker 1 | . . 1 . Builder 1 | . . 1 . Recycler 1 | . . 1 . Grunt 2 | . 1 1 . Sentry 1 | . . . 1 Best Kill Streak 3 | . 1 3 1 Combat Bots Only 1 | . 1 1 1 Max Kills in Single Turn 1 | . 1 1 1 Gunslinging . | . . . . Exploded . | . . . . Melee 1 | . 1 . . Uniques/NPCs Destroyed . | . . . . Combat | -11 -10 -10 -9 -------- Run | Yrd Mat Min Mat Hostile Shots Fired 131 | . 14 15 102 Missed 41 | . 1 5 35 Hits 90 | . 13 10 67 Projectile 90 | . 13 10 67 Critical Strikes 5 | . . 1 4 Damage Taken 1221 | . 149 140 932 Core 438 | . 23 14 401 Absorbed by Shields . | . . . . Core Remaining (%) 92 | 100 . 85 . Volleys Fired 9 | . 1 . 8 Largest 2 | . 2 . 1 Hottest 40 | . 40 . 30 Shots Fired 10 | . 2 . 8 Gun 2 | . 2 . . Cannon 8 | . . . 8 Launcher . | . . . . Special . | . . . . Kinetic 10 | . 2 . 8 Thermal . | . . . . Explosive . | . . . . Electromagnetic . | . . . . Robot Hit Streak 1 | . . . 1 Robot Miss Streak 4 | . 2 . 4 Penetration Max . | . . . . Secondary Targets . | . . . . Shots Hit Robots 14 | . 5 4 5 Core Hits 2 | . . 2 . Critical Kills 1 | . . 1 . Critical Parts Destroyed 4 | . 1 2 1 Critical Strikes 5 | . 1 3 1 Smash 5 | . 1 3 1 Melee Attacks 17 | . 7 5 5 Impact 17 | . 7 5 5 Slashing . | . . . . Piercing . | . . . . Sneak Attacks 3 | . . 3 . Combat Hostiles . | . . . . Follow-up Attacks . | . . . . Damage Inflicted 549 | . 164 274 111 Guns . | . . . . Cannons 36 | . . . 36 Explosions . | . . . . Melee 507 | . 164 274 69 Ramming 6 | . . . 6 Kinetic 36 | . . . 36 Thermal . | . . . . Explosive . | . . . . Electromagnetic . | . . . . Impact 507 | . 164 274 69 Slashing . | . . . . Piercing . | . . . . Highest Corruption . | . . . . Average Corruption . | . . . . Corruption Purged . | . . . . Corruption Blocked . | . . . . Overload Shots . | . . . . Overflow Damage 187 | . 32 137 18 Projectiles . | . . . . Explosions . | . . . . Melee 187 | . 32 137 18 Knockbacks 2 | . . 1 1 Impact 1 | . . 1 . Kinetic 1 | . . . 1 Secondary . | . . . . Self-Inflicted Damage 3 | . . . 3 Shots . | . . . . Rammed 2 | . . . 2 Targets Rammed 2 | . . . 2 Kicked . | . . . . Crushed . | . . . . Highest Temperature 14 | . . 7 14 Average Temperature 6 | . . 7 6 Received Heat Transfer 558 | . 78 99 381 Siege Activations . | . . . . Martial Activations . | . . . . Shielding Activations . | . . . . Robots Disrupted . | . . . . Combat Hostiles . | . . . . Robots Corrupted 3 | . . 2 1 Combat Hostiles 2 | . . 1 1 Parts Fried 4 | . . 4 . Impact Corruptions 7 | . 1 5 1 Robots Melted . | . . . . Combat Hostiles . | . . . . Parts Melted . | . . . . Heat Transferred . | . . . . Parts Sabotaged . | . . . . Parts Stolen . | . . . . Parts Stripped . | . . . . Power Chain Reactions . | . . . . Alert | -11 -10 -10 -9 ------- Run | Yrd Mat Min Mat Maximum Alert Level . | . . . . Low Security (%) 100 | 100 100 100 100 Level 1 . | . . . . Level 2 . | . . . . Level 3 . | . . . . Level 4 . | . . . . Level 5 . | . . . . High Security . | . . . . Max Security . | . . . . Peak Influence 35 | . 20 35 30 Initial 1 | . . . 1 Average 3 | . 2 14 . Influence Increases 97 | . 20 45 32 Destroy 0b10 Robot/C 60 | . 20 20 20 Destroy 0b10 Robot/NC 15 | . . 15 . Destroy Leader 20 | . . 10 10 Successful Hack 2 | . . . 2 Influence Decreases 97 | . 20 40 37 Entered New Map 4 | . . . 4 Time Decay 73 | . 20 40 13 Lost Part 20 | . . . 20 Squads Dispatched 2 | . 1 . 1 Investigation . | . . . . Extermination . | . . . . Reinforcement 2 | . 1 . 1 Assault . | . . . . Garrison . | . . . . Intercept . | . . . . Searches Triggered . | . . . . Construction Impeded . | . . . . Haulers Reinforced . | . . . . Active Scanning Responses . | . . . . Cargo Convoy Interrupts . | . . . . Stealth | -11 -10 -10 -9 --------- Run | Yrd Mat Min Mat Distress Signals 1 | . 1 . . Communications Jammed . | . . . . Distress Signals . | . . . . Times Spotted 18 | . 3 6 9 Peak Tracking Total 7 | . 2 2 7 Tactical Retreats . | . . . . Traps | -11 -10 -10 -9 ------- Run | Yrd Mat Min Mat Traps Triggered 1 | . 1 . . Indirectly . | . . . . Trap Hack Attempts . | . . . . Triggered . | . . . . Disarmed . | . . . . Reprogrammed . | . . . . Reused . | . . . . Traps Extracted . | . . . . Installed . | . . . . Triggered . | . . . . Machines | -11 -10 -10 -9 ---------- Run | Yrd Mat Min Mat Machines Disabled . | . . . . Max in Single Turn . | . . . . Machines Repaired . | . . . . Machines Dismantled . | . . . . Machines Sabotaged . | . . . . Overloaded Fab Kills . | . . . . Hacking | -11 -10 -10 -9 --------- Run | Yrd Mat Min Mat Machines Accessed 1 | . . . 1 Terminals . | . . . . Fabricators . | . . . . Repair Stations . | . . . . Recycling Units . | . . . . Scanalyzers 1 | . . . 1 Garrison Access . | . . . . Total Hacks 5 | . . . 5 Successful 5 | . . . 5 Failed . | . . . . Catastrophic . | . . . . Database Lockouts . | . . . . Manual . | . . . . Terminals . | . . . . Fabricators . | . . . . Repair Stations . | . . . . Recycling Units . | . . . . Scanalyzers 5 | . . . 5 Garrison Access . | . . . . Terminal Hacks . | . . . . Fabricator Hacks . | . . . . Repair Station Hacks . | . . . . Recycling Unit Hacks . | . . . . Scanalyzer 5 | . . . 5 Insert Component 2 | . . . 2 Analyze 3 | . . . 3 Garrison Access Hacks . | . . . . Unauthorized Hacks . | . . . . Terminals . | . . . . Fabricators . | . . . . Repair Stations . | . . . . Recycling Units . | . . . . Scanalyzers . | . . . . Garrison Access . | . . . . Data Cores Recovered . | . . . . Used . | . . . . Hacking Detections 1 | . . . 1 Full Trace Events . | . . . . Feedback Events . | . . . . Feedback Blocked . | . . . . Robot Schematics Acquired . | . . . . Robots Built . | . . . . Authchips . | . . . . Time . | . . . . Total Robot Build Rating . | . . . . Part Schematics Acquired 2 | . . . 2 Parts Built . | . . . . Authchips . | . . . . Time . | . . . . Total Part Build Rating . | . . . . Parts Repaired . | . . . . Time . | . . . . Parts Recycled . | . . . . Recycled Matter . | . . . . Retrieved Matter . | . . . . Retrieved Components . | . . . . Parts Scanalyzed 2 | . . . 2 Part Schematics Acquired 2 | . . . 2 Parts Damaged . | . . . . Bothacking | -11 -10 -10 -9 ------------ Run | Yrd Mat Min Mat Used RIF Installer . | . . . . Robots Hacked . | . . . . Non-combat . | . . . . Combat . | . . . . Robot Hacks Applied . | . . . . Relay Couplers Released . | . . . . Fabnet Peak Effective % . | . . . . Robots Rewired . | . . . . Allies Hacked . | . . . . Hacks Repelled . | . . . . Allies | -11 -10 -10 -9 -------- Run | Yrd Mat Min Mat Total Allies . | . . . . Largest Group . | . . . . Highest-Rated Group . | . . . . Highest-Rated Ally . | . . . . Total Orders . | . . . . Ally Attacks . | . . . . Total Damage . | . . . . Kills . | . . . . Allies Corrupted . | . . . . Allies Melted . | . . . . Intel | -11 -10 -10 -9 ------- Run | Yrd Mat Min Mat Active Infowar (turns) . | . . . . Robot Analysis Total . | . . . . Derelict Logs Recovered . | . . . . Drone Launches . | . . . . Drone Recoveries . | . . . . Exploration | -11 -10 -10 -9 ------------- Run | Yrd Mat Min Mat Turns Passed 569 | 79 107 111 272 Spaces Moved 376 | 82 77 59 158 Core 44 | 3 . . 41 Treads 197 | . 21 59 117 Legs . | . . . . Wheels 135 | 79 56 . . Hover . | . . . . Flight . | . . . . Fastest Speed 50 | 50 80 160 100 Average Speed 126 | 78 101 160 150 Slowest Speed 160 | 80 160 160 160 Overloaded Moves . | . . . . Propulsion Burnouts . | . . . . Robots Hopped . | . . . . Potential Cave-ins . | . . . . Cave-ins Triggered . | . . . . Exploration Rate (%) 15 | 4 24 14 19 Regions Visited 3 Branch Regions 1 Pre-discovered Areas . | . . . . Known Exits Taken . | . . . . Unknown Exits Taken 3 | 1 1 1 . Scrap Searched 1 | . . 1 . Spaces Dug . | . . . . Terrain Destroyed . | . . . . Melee . | . . . . Projectile . | . . . . AOE . | . . . . Terrain Rammed . | . . . . Walls Destroyed . | . . . . Machines Disabled . | . . . . Actions | -11 -10 -10 -9 --------- Run | Yrd Mat Min Mat Total 420 | 92 89 65 174 Wait . | . . . . Move 373 | 81 76 58 158 Hop . | . . . . Pick Up 7 | 3 2 1 1 Fast Attach 6 | 6 . . . Attach 1 | . 1 . . Detach . | . . . . Swap 5 | 2 2 1 . Drop . | . . . . Fire 9 | . 1 . 8 Melee 17 | . 7 5 5 Ram 2 | . . . 2 Kick . | . . . . Crush . | . . . . Escape Stasis . | . . . . Rewire . | . . . . Trap . | . . . . Miscellaneous . | . . . . Route ------- -11/Scrapyard -10/Materials -10/Mines -9/Materials History --------- Turn | Location | Event 20 | -11/Scrapyard | Discovered new exit (range 14) 80 | -11/Scrapyard | Entered Materials 129 | -10/Materials | Discovered new exit (range 9) 173 | -10/Materials | Met 8R-AWN 187 | -10/Materials | Entered Mines 189 | -10/Mines | Followed 8R-AWN into the Mines 220 | -10/Mines | Discovered new exit (range 10) 298 | -10/Mines | Entered Materials 298 | -9/Materials | Evolved 2 slots: Utility x2 309 | -9/Materials | Build established: Mutant 525 | -9/Materials | Core integrity fell below 50% 554 | -9/Materials | Core integrity fell below 20% 570 | -9/Materials | Destroyed by G-34 Mercenary with Small Laser Last Messages --------------- (Smash). 00510_ Destroyed Heat Sink. 00510_ Y-45 Defender system corrupted by crushing effect. 00510_ Lgt. Cannon destroyed. 00511_ Y-45 Defender system terminally corrupted. 00515_ K-01 Serf cleans the Fusion Modulator. 00516_ Ion Engine destroyed. 00516_ Critical hit (Burn: +37). 00517_ Lgt. Treads destroyed. 00519_ K-01 Serf cleans the Fusion Modulator. 00520_ K-01 Serf collects debris. 00522_ K-01 Serf destroyed. 00523_ K-01 Serf collects debris. 00544_ Maul destroyed. 00557_ Slammed into G-34 Mercenary. 00557_ G-34 Mercenary suffers critical hit (Burn). 00558_ Slammed into G-34 Mercenary. Map ----- +----------------------------------------------------+ | ?????? #??????????????????????????????????????? | | ???????####??????????????????????????????????????? | | #????????????????????????????????????????????????? | | #????????????????????????????????????????????????? | | #????????????????????????????????????????????????? | | #????????????????????????????????????????????????? | | #????????????????????????????????????????????????? | | #????????????????????????????????????????????????? | | #????????????????????????????????????????????????? | | #????????????????????????????????????????????????? | | #????????????????????????????????????????????????? | | ?????????????????????????????????????????????????? | | #####+##########?????????????????????????????????? | | # #?????????????????????????????????? | | # "" """ #?????????????????????????????????? | | # "Y """ #######???????????????????????????? | | # "" """ # ###########?????????????????? | | # # #?????????????????? | | # """ / #?????????????????? | | " *%""" # #?????????????????? | | ###### **=""" # % ###g### +?????????????????? | | #????# * %=###/### #?????????????????????? | | ?????#######!## ##! #?????????????????????? | | ???????????#### ## #?????????????????????? | | ??????????????# ##"" #?????????????????????? | | ??????????????# ##""@!#?????????????????????? | | ??????????????# ##"T #?????????????????????? | | #??????????????# ##"" #?????????????????????? | | ???????????????# ##"" #?????????????????????? | | ???????????????# ## #?????????????????????? | | ???????????????# #######?????????????????????? | | ???????????????# #???????????????????????????? | | ???????????????# #???????????????????????????? | | ????????????????#####????????????????????????????? | | | | | | | | | | | | | | | | | | | | | | | | | | | | | | | | | +----------------------------------------------------+ Best States ------------- Heat Dissipation 28 Energy Generation 10 Energy Capacity 250 Matter Stores 300 Matter Capacity 300 Sight Range 16 Terrain Scan Density 10 Evasion (%) 44 Recoil Reduction 2 Item Schematics ----------------- Beam Cannon | -9/Materials | Scanalyzed Wheel | -9/Materials | Scanalyzed Robot Schematics ------------------ None Fabricated ------------ Nothing Repaired ---------- Nothing Alien Tech Used ----------------- None Achievements -------------- None Challenges ------------ None Game ------ Seed PersonalProjectileNanosword Manual? 0 Play Time 00:06:02 Cumulative 10.6 hours Start 2025.08.12 @ 14:52:19 End 2025.08.12 @ 14:56:51 Sessions 1 Manual Loads 0 Difficulty Rogue Special Mode None Game No. 34 Rogue 34 Adventurer 0 Explorer 0 Win Type - Total 0 Types 0/0/0/0/0/0/0/0/0/0 Lore% 5 Gallery% 13 Achievement% 14 Wizard Run 0 Options --------- Layout 1 ASCII 0 Keyboard 0 Movement Numpad Keybinds 0 Fullscreen 1 Font 32/SmallcapsGlow Map View 50x35 Zoom Use 0% Tactical HUD 1 Map Filters NONE Filters NONE Steam 1 RUN: 39619459-5bf8-468d-a4b6-4e26e3a015c1